bitfinex/quotes_ETHUSD_20260131
["timestamp","ask_amount","ask_price","bid_price","bid_amount"]
[1769844668599,4.71404278,2687.6,2686.0,9.84147062]
[1769844669828,4.71404278,2687.8,2686.3,5.77211562]
[1769844669993,5.64420611,2687.7,2686.3,4.84147062]
[1769844670198,4.71404278,2687.6,2686.5,4.84147062]
[1769844670394,1.89614025,2687.7,2686.5,4.84147062]
[1769844670608,5.93915692,2687.9,2686.5,4.84147062]
[1769844670830,4.71404278,2687.8,2686.5,4.84147062]
[1769844671931,4.71404278,2687.6,2686.4,0.56204706]
[1769844672636,4.71404278,2687.6,2686.4,5.40351768]
[1769844672798,4.71404278,2687.6,2686.4,4.84147062]
[1769844673611,4.71404278,2687.6,2686.0,5.0]
[1769844673812,4.71404278,2687.6,2686.1,4.84147062]
[1769844674025,5.6442522,2687.6,2686.1,5.77215723]
[1769844674232,6.76126106,2687.8,2686.3,4.84147062]
[1769844674419,0.29500946,2687.9,2686.3,4.84147062]
[1769844675220,0.29500946,2687.9,2686.6,4.84147062]
[1769844675421,5.93914808,2687.9,2686.6,4.84147062]
[1769844675741,4.71404278,2687.8,2686.7,0.62204706]
[1769844676112,4.71404278,2687.6,2686.5,0.779]
[1769844676319,4.71404278,2687.6,2686.6,0.93052464]
[1769844676721,4.71404278,2687.6,2686.5,0.779]
[1769844678054,4.71404278,2687.4,2686.5,0.779]
[1769844678221,4.71404278,2687.2,2686.5,0.779]
[1769844678830,4.71404278,2687.2,2686.2,1.4495031]
[1769844679153,4.71404278,2687.2,2686.0,5.0]
[1769844679337,0.56442753,2687.3,2686.0,5.0]
[1769844679338,4.71404278,2687.0,2686.0,5.0]
[1769844679523,4.71404278,2687.0,2686.1,0.93070092]
[1769844680318,0.93044028,2686.9,2686.7,0.0011]
[1769844680659,5.64448306,2686.9,2686.7,0.0011]
[1769844680825,5.65065356,2686.8,2686.0,5.0]
[1769844681041,5.65065356,2686.8,2686.5,0.0011]
[1769844681419,0.93661078,2686.8,2686.5,0.0011]
[1769844681620,5.64448306,2686.9,2686.5,0.0011]
[1769844682227,4.71404278,2686.9,2686.5,0.0011]
[1769844682721,5.64448605,2686.9,2686.5,0.0011]
[1769844684316,4.71404278,2686.9,2686.5,0.0011]
[1769844684526,6.35,2687.3,2686.5,0.0011]
[1769844684757,4.81404278,2687.6,2686.6,4.84147062]
[1769844684939,0.1,2687.6,2686.6,4.84147062]
[1769844685446,4.81404278,2687.6,2686.5,1.41593469]
[1769844685832,4.81404278,2687.6,2686.6,4.84147062]
[1769844687627,0.1,2687.6,2686.7,5.77198016]
[1769844687827,0.1,2687.6,2686.8,0.94940183]
[1769844688459,0.02370331,2687.6,2686.8,5.79087245]
[1769844688648,0.29500946,2687.9,2686.9,4.84147062]
[1769844689248,0.29500946,2687.9,2687.1,4.84147062]
[1769844689468,0.29500946,2687.9,2687.3,4.84147062]
[1769844689674,0.29500946,2687.9,2687.4,0.93026717]
[1769844690540,0.29500946,2687.9,2687.4,5.77173779]
[1769844690738,4.71404278,2688.6,2687.4,5.77173779]
[1769844690950,0.92988713,2688.5,2687.4,5.77173779]
[1769844691173,5.64391275,2688.6,2687.4,5.77173779]
[1769844691368,0.9308401,2688.7,2687.4,5.77173779]
[1769844691573,0.001,2688.7,2687.5,4.84147062]
[1769844691774,0.001,2688.7,2687.5,5.79075127]
[1769844691943,0.93082609,2688.7,2687.6,5.77166856]
[1769844692145,5.64486887,2688.7,2687.6,5.77166856]
[1769844692343,4.71504278,2688.7,2687.7,1.0441741]
[1769844693469,4.71504278,2688.7,2687.7,4.84147062]
[1769844694191,5.64389474,2688.6,2687.6,3.7207145]
[1769844694372,5.65507104,2688.6,2687.6,3.7207145]
[1769844695244,5.65507104,2688.6,2687.5,0.93023255]
[1769844697860,4.71404278,2688.6,2687.6,4.24897562]
[1769844698062,0.001,2688.7,2687.7,4.76689644]
[1769844698456,0.93083013,2688.7,2687.7,4.76689644]
[1769844698653,5.35286744,2688.7,2687.7,4.76689644]
[1769844699156,0.001,2688.7,2687.8,0.93012872]
[1769844699360,0.001,2688.7,2687.9,4.43618987]
[1769844699570,0.001,2688.7,2688.0,0.53663186]
[1769844700083,4.25908675,2688.7,2688.0,0.53663186]
[1769844700286,4.25908675,2688.7,2687.8,0.93012872]
[1769844703299,5.18890944,2688.7,2687.8,0.93012872]
[1769844704065,4.25908675,2688.7,2687.8,0.93012872]
[1769844704271,4.25908675,2688.7,2687.8,5.36631859]
[1769844704486,0.001,2688.7,2687.8,5.36631859]
[1769844704691,0.001,2688.7,2688.0,4.43618987]
[1769844704987,0.001,2688.5,2688.0,4.43618987]
[1769844705195,4.25908675,2688.5,2687.9,0.96047543]
[1769844705567,4.25908675,2688.5,2687.8,0.93012872]
[1769844706186,5.18899593,2688.5,2687.7,1.44916617]
[1769844706374,5.18899593,2688.5,2687.7,0.93126204]
[1769844708489,5.18899593,2688.5,2687.7,0.0011]
[1769844712598,5.20017223,2688.5,2687.7,0.0011]
[1769844713019,0.0111763,2688.3,2687.7,0.0011]
[1769844713174,4.25808675,2688.2,2687.7,0.0011]
[1769844713369,4.68389543,2688.2,2687.7,0.0011]
[1769844714500,5.18803267,2688.4,2687.7,0.0011]
[1769844717507,5.18803267,2688.4,2687.9,0.0011]
[1769844718004,0.001,2688.3,2687.9,0.0011]
[1769844718589,4.25908675,2688.3,2687.9,0.0011]
[1769844720806,0.001,2688.3,2687.9,4.43728987]
[1769844721021,0.001,2688.5,2688.0,4.87991886]
[1769844722687,0.001,2688.5,2688.0,0.44372899]
[1769844722907,0.001,2688.5,2687.9,0.0011]
[1769844724679,0.001,2688.5,2687.9,4.43728987]
[1769844725584,0.001,2688.5,2688.1,4.43618987]
[1769844728197,0.001,2688.5,2688.2,0.92999032]
[1769844728416,0.001,2688.5,2688.0,0.93003572]
[1769844728989,0.001,2688.5,2687.9,0.93117437]
[1769844730119,0.001,2688.5,2688.3,0.0011]
[1769844730437,0.42545287,2688.5,2688.3,0.0011]
[1769844730625,4.66798159,2688.5,2688.3,0.0011]
[1769844730831,4.24352872,2688.5,2688.0,0.0011]
[1769844732656,4.24252872,2688.3,2687.7,0.0011]
[1769844733753,4.24252872,2687.9,2687.0,0.93148064]
[1769844733908,4.66789922,2687.8,2687.0,0.93148064]
[1769844734720,4.24252872,2687.7,2687.0,0.93150565]
[1769844734921,4.24252872,2687.7,2687.0,0.0011]
[1769844736652,4.24252872,2687.3,2686.7,0.0011]
[1769844736846,4.24252872,2687.1,2686.0,5.93072835]
[1769844737146,4.24252872,2686.9,2686.0,5.93072835]
[1769844737502,4.24252872,2686.7,2686.0,5.0]
[1769844737709,4.66789922,2686.7,2686.0,5.0]
[1769844737927,4.66789922,2686.7,2686.0,5.9307517]
[1769844738645,0.4253705,2686.7,2686.0,5.9307517]
[1769844738853,5.1729868,2686.9,2686.0,5.9307517]
[1769844740447,4.25370502,2686.8,2686.0,5.0]
[1769844741246,4.25370502,2686.8,2686.0,5.93074138]
[1769844741247,4.24252872,2686.6,2686.0,5.93074138]
[1769844741952,5.18420466,2686.8,2686.0,5.93074138]
[1769844742325,5.18420466,2686.8,2686.0,5.0]
[1769844742326,4.24252872,2686.5,2686.0,5.0]
[1769844742631,0.4253705,2686.4,2686.2,0.0011]
[1769844745918,0.0111763,2686.6,2686.2,0.0011]
[1769844746123,5.18423983,2686.7,2686.2,0.0011]
[1769844747543,4.24252872,2686.7,2686.2,0.0011]
[1769844748051,0.94168082,2686.8,2686.2,0.0011]
[1769844748243,5.17299187,2686.9,2686.2,0.0011]
[1769844748443,0.89058202,2686.8,2686.2,0.0011]
[1769844750661,6.35,2687.7,2686.2,3.97990921]
[1769844750866,7.71669634,2687.8,2686.2,3.97990921]
[1769844751164,1.35552004,2687.8,2686.2,3.97990921]
[1769844751328,4.25370502,2687.6,2686.2,3.97990921]
[1769844751529,4.25370502,2687.4,2686.2,3.97990921]
[1769844751847,4.25370502,2687.4,2686.4,3.97880921]
[1769844752459,4.24252872,2687.6,2686.4,3.97880921]
[1769844752668,5.17274801,2687.6,2686.5,4.90938803]
[1769844753663,4.24252872,2687.6,2686.5,4.90938803]
[1769844753865,4.24252872,2687.2,2686.2,0.0011]
[1769844754181,4.24252872,2687.4,2686.4,4.90941188]
[1769844754371,0.0111763,2687.3,2686.4,4.90941188]
[1769844755342,0.93128628,2687.4,2686.4,4.90941188]
[1769844756868,0.0111763,2687.3,2686.4,4.90941188]
[1769844757069,0.0111763,2687.3,2686.5,0.86319736]
[1769844757266,0.93128628,2687.4,2686.5,1.79376445]
[1769844757871,0.93128628,2687.4,2686.2,0.0011]
[1769844757872,3.8581648,2686.8,2686.2,0.0011]
[1769844758070,3.8581648,2686.5,2686.0,1e-08]
[1769844758270,0.38581648,2686.4,2686.0,1e-08]
[1769844759188,0.38581648,2686.4,2685.6,1.15144175]
[1769844759189,4.09147683,2686.2,2685.6,1.15144175]
[1769844759345,4.09147683,2686.2,2685.4,0.0011]
[1769844759346,5.0221931,2686.2,2685.4,0.0011]
[1769844759856,5.0221931,2686.2,2685.4,0.93205666]
[1769844760250,4.09147683,2686.2,2685.5,0.93090763]
[1769844760458,0.93061024,2686.5,2685.6,0.93088952]
[1769844760657,0.93061024,2686.5,2685.6,1.79565695]
[1769844761068,0.93055255,2686.6,2685.6,5.78773452]
[1769844761388,0.93047491,2686.8,2685.7,3.99207757]
[1769844761590,0.93047491,2686.8,2685.8,0.93082135]
[1769844761782,0.87438514,2686.7,2685.8,0.93082135]
[1769844762798,4.96586197,2686.7,2685.6,0.86476743]
[1769844763003,0.0111763,2686.5,2685.5,0.93091852]
[1769844763174,4.96586197,2686.7,2685.5,0.93091852]
[1769844763495,4.09147683,2686.5,2685.5,0.93091852]
[1769844763792,0.93061346,2686.4,2685.5,0.93092533]
[1769844765797,5.01091399,2686.4,2685.5,0.93092533]
[1769844766501,5.01091399,2686.4,2685.4,3.99317757]
[1769844766801,5.01091399,2686.4,2685.3,0.0046838]
[1769844766802,4.08030053,2685.6,2684.8,0.93114922]
[1769844767709,4.09147683,2685.9,2685.5,0.0011]
[1769844767863,0.93082135,2685.8,2685.5,0.0011]
[1769844768521,0.0111763,2685.7,2685.5,0.0011]
[1769844768819,0.0111763,2685.7,2684.7,4.92325578]
[1769844768998,0.88684118,2685.7,2684.7,4.92325578]
[1769844769171,0.87566488,2685.7,2684.7,4.92325578]
[1769844769370,0.88684118,2685.7,2684.7,4.92325578]
[1769844770810,0.93089067,2685.6,2684.7,4.92325578]
[1769844771508,0.0111763,2686.1,2684.9,3.99317757]
[1769844771725,4.09147683,2685.9,2684.9,0.0011]
[1769844772817,0.93082135,2685.8,2684.9,3.99317757]
[1769844774510,0.0111763,2685.9,2684.9,3.99317757]
[1769844774717,0.93068274,2686.2,2685.1,4.92311764]
[1769844774884,0.0111763,2686.1,2685.1,4.92311764]
[1769844775916,0.0111763,2686.1,2685.1,3.99207757]
[1769844776825,0.93075204,2686.0,2685.1,4.92313988]
[1769844777035,1.80527575,2686.0,2685.1,5.82794643]
[1769844777713,1.81645205,2686.0,2685.1,5.82794643]
[1769844778417,1.81645205,2686.0,2685.2,3.99207757]
[1769844779414,1.80527575,2686.0,2685.2,3.99207757]
[1769844779807,0.001,2685.9,2685.2,3.99207757]
[1769844780117,0.001,2685.9,2685.2,5.91837193]
[1769844780492,0.001,2685.9,2685.3,3.99207757]
[1769844781119,4.09247683,2685.9,2685.2,0.99527569]
[1769844781299,5.02329576,2685.9,2685.1,0.93215831]
[1769844782721,5.02329576,2685.9,2685.1,0.0011]
[1769844785312,4.09147683,2685.7,2685.1,0.0011]
[1769844785815,4.08030053,2685.3,2684.9,0.0011]
[1769844786021,4.48833058,2685.2,2684.4,0.93240026]
[1769844786221,4.08030053,2685.2,2683.8,0.0011]
[1769844786408,4.08030053,2685.2,2682.6,0.0111763]
[1769844786409,0.0111763,2684.0,2682.9,3.99207757]
[1769844786781,0.0111763,2684.0,2681.7,0.78]
[1769844786782,0.0111763,2682.9,2682.0,3.72855159]
[1769844786897,0.0111763,2683.1,2682.0,4.5353081]
[1769844787095,0.01118338,2682.7,2682.0,0.75125997]
[1769844787303,0.01118338,2682.4,2681.5,0.78305785]
[1769844787833,4.0457806,2682.9,2681.6,3.78404813]
[1769844788130,0.01118463,2683.3,2682.0,4.7161851]
[1769844788430,0.7311814,2683.4,2682.0,4.7161851]
[1769844789300,0.01118463,2683.3,2682.0,4.7161851]
[1769844789504,0.01118463,2683.2,2682.0,4.7161851]
[1769844789809,0.01118463,2683.2,2681.5,1.71534922]
[1769844789810,0.01118463,2682.6,2681.5,1.71534922]
[1769844790120,0.01118547,2682.3,2681.5,0.50877397]
[1769844790327,0.01118547,2682.1,2681.5,0.50877397]
[1769844790544,0.27055748,2681.6,2680.0,4.04940312]
[1769844790851,0.01118547,2681.2,2680.1,4.98220413]
[1769844791053,0.01118547,2681.0,2680.2,1.80407888]
[1769844791221,0.01119131,2680.9,2680.2,1.80407888]
[1769844791555,0.01118547,2681.9,2680.3,4.04940312]
[1769844791721,0.01119131,2682.2,2680.5,4.04940312]
[1769844791915,0.01119131,2682.0,2680.5,4.04940312]
[1769844792120,0.01119131,2681.8,2680.5,4.04940312]
[1769844792321,0.01119131,2681.9,2680.7,4.04940312]
[1769844792630,0.01119131,2682.1,2680.7,4.04940312]
[1769844792844,0.01119131,2682.0,2680.7,4.04940312]
[1769844793017,0.01119131,2681.9,2681.0,4.98189099]
[1769844793552,0.01119131,2681.5,2681.0,4.04940312]
[1769844793756,0.01119131,2681.7,2681.0,4.04940312]
[1769844794055,0.01119131,2681.9,2680.9,4.98192076]
[1769844794269,0.01119131,2681.8,2681.0,0.87121489]
[1769844794421,0.01119131,2681.8,2680.9,4.98192332]
[1769844794748,0.01119131,2682.1,2681.0,4.64084984]
[1769844794952,0.94317742,2682.5,2681.0,4.64084984]
[1769844795150,0.94317742,2682.5,2681.2,4.04940312]
[1769844795451,0.01119131,2682.3,2681.2,4.04940312]
[1769844795653,0.001,2682.7,2681.2,4.04940312]
[1769844795952,0.01119131,2682.5,2681.4,4.04940312]
[1769844796831,0.94408937,2682.7,2681.4,4.04940312]
[1769844797520,0.94408937,2682.7,2681.6,4.04940312]
[1769844797927,0.93289806,2682.7,2681.6,4.04940312]
[1769844798153,0.94408937,2682.7,2681.6,4.04940312]
[1769844798358,0.46815103,2682.7,2681.7,4.54757483]
[1769844798527,0.001,2682.7,2681.7,4.04940312]
[1769844798728,0.93289827,2682.7,2681.7,4.04940312]
[1769844799058,0.93290022,2682.7,2681.7,4.04940312]
[1769844799427,0.94409153,2682.7,2681.7,4.04940312]
[1769844799628,0.001,2682.7,2681.8,0.9322097]
[1769844799829,0.27265685,2683.1,2681.8,4.98161282]
[1769844801541,0.01119131,2683.0,2681.8,4.98161282]
[1769844801773,1.21562198,2683.1,2681.8,4.98161282]
[1769844802056,0.49426541,2683.0,2681.9,4.04940312]
[1769844802230,1.21560704,2683.1,2681.9,4.04940312]
[1769844802661,0.01119131,2682.9,2681.9,4.04940312]
[1769844802875,0.01119131,2682.5,2681.6,4.04940312]
[1769844803154,0.01119131,2682.8,2681.6,4.04940312]
[1769844803155,0.01119131,2682.6,2681.6,4.04940312]
[1769844803356,0.01119131,2682.4,2681.6,4.04940312]
[1769844803560,0.01119131,2682.4,2680.8,3.73014956]
[1769844803561,0.01119131,2682.0,2680.8,4.04940312]
[1769844803859,0.01119131,2681.5,2680.5,0.781]
[1769844804157,0.01119131,2681.5,2680.8,0.93255279]
[1769844804330,0.01119131,2682.2,2681.1,0.93243349]
[1769844804331,0.01119131,2682.0,2681.1,0.93243349]
[1769844804522,0.01119131,2682.0,2681.2,0.93241157]
[1769844804726,0.01119131,2681.9,2680.8,4.04940312]
[1769844804927,0.01119131,2681.8,2681.0,0.93248438]
[1769844805146,0.01119131,2682.2,2681.2,0.93241776]
[1769844805344,0.94322724,2682.3,2681.2,0.93241776]
[1769844805548,0.94330281,2682.1,2681.1,7.77908153]
[1769844805749,3.73936353,2682.3,2681.2,4.04940312]
[1769844805750,0.01119131,2682.3,2681.2,4.04940312]
[1769844805961,0.9432315,2682.3,2681.2,4.04940312]
[1769844806177,0.70810901,2682.2,2681.2,0.2501655]
[1769844806331,0.70810901,2682.2,2679.8,0.0189244]
[1769844806332,0.01119131,2681.5,2680.2,4.40455759]
[1769844806664,0.01119131,2681.1,2680.2,0.0011]
[1769844807044,0.01119131,2681.0,2680.2,5.80393735]
[1769844807243,0.01119131,2680.9,2680.2,0.4677321]
[1769844807469,0.01119131,2680.6,2680.2,0.0011]
[1769844807765,0.9326076,2680.7,2680.2,0.0011]
[1769844807965,0.94375326,2680.8,2680.2,0.0011]
[1769844808171,0.01119194,2680.4,2679.8,0.0189244]
[1769844808475,0.01119194,2679.7,2678.9,2.92730291]
[1769844808696,0.43694563,2680.5,2678.9,2.92730291]
[1769844808697,0.01119194,2680.0,2679.0,2.92724249]
[1769844808837,0.01119194,2679.1,2678.9,6.042e-05]
[1769844809036,0.01119194,2678.9,2677.7,5.36673426]
[1769844809296,0.02785288,2679.6,2677.7,5.36673426]
[1769844809297,0.02785288,2680.4,2678.2,4.43311416]
[1769844809470,0.01119988,2680.7,2678.4,4.43311416]
[1769844809471,0.01119988,2680.2,2678.4,4.43311416]
[1769844809637,0.94398032,2680.2,2678.6,4.43311416]
[1769844809832,0.01119988,2680.1,2678.6,4.43311416]
[1769844810143,0.01119988,2680.1,2678.5,4.67473637]
[1769844810144,0.01119988,2680.1,2678.8,4.43311416]
[1769844810346,0.94387577,2680.5,2678.9,5.16914983]
[1769844810667,2.17413756,2680.8,2678.9,4.43311416]
[1769844810866,2.17413756,2680.8,2679.1,4.43311416]
[1769844811076,0.31178712,2680.7,2679.3,4.43311416]
[1769844811247,0.94342734,2681.8,2679.7,3.78404813]
[1769844811445,0.01119988,2681.7,2679.9,3.78404813]
[1769844811656,0.01119988,2681.8,2680.1,3.78404813]
[1769844811965,0.93217495,2681.9,2680.3,3.78404813]
[1769844812278,0.01119988,2681.9,2680.3,3.78404813]
[1769844812451,0.94332951,2682.1,2680.5,3.78404813]
[1769844812452,0.01119988,2682.0,2680.5,3.78404813]
[1769844812843,0.01119988,2682.0,2680.6,2.92724249]
[1769844813043,0.01119988,2682.0,2680.7,0.67112906]
[1769844813560,0.01119988,2681.8,2680.8,2.92724249]
[1769844813763,0.01119988,2681.2,2679.9,4.71689533]
[1769844813963,0.01119988,2681.6,2680.0,6.65856788]
[1769844814183,0.01119988,2681.4,2680.1,1.0442616]
[1769844814343,0.01119988,2681.4,2680.1,3.97150409]
[1769844814545,2.34960505,2681.5,2679.8,0.37840481]
[1769844814872,2.34960505,2681.3,2679.9,2.92724249]
[1769844815194,3.84257776,2681.8,2680.0,7.51532963]
[1769844815195,3.28183238,2681.8,2680.0,7.51532963]
[1769844815346,3.28183238,2681.8,2680.6,0.93261491]
[1769844815540,0.93222733,2681.8,2680.8,0.93254299]
[1769844815739,0.93207068,2682.2,2680.3,3.73084727]
[1769844815982,0.93207068,2682.2,2680.4,2.92724249]
[1769844815983,3.32722091,2682.2,2680.4,2.92724249]
[1769844816276,3.32722091,2682.2,2680.4,3.78404813]
[1769844816475,0.94327056,2682.2,2680.5,2.92724249]
[1769844816679,0.01119988,2682.0,2680.5,6.71129062]
[1769844816975,0.01119988,2682.0,2680.9,0.0011]
[1769844817553,0.01119988,2682.0,2681.0,2.92184249]
[1769844817882,0.93217495,2681.9,2681.0,3.85433033]
[1769844818450,0.9433607,2682.0,2681.0,3.85433033]
[1769844818776,0.93216082,2682.0,2681.1,2.92184249]
[1769844818987,0.93210543,2682.1,2681.2,2.92184249]
[1769844819144,0.46604203,2682.0,2681.1,2.92184249]
[1769844820382,1.39821517,2682.0,2681.1,3.85427987]
[1769844820982,1.39821517,2682.0,2681.2,2.92184249]
[1769844822049,0.01119988,2681.9,2681.2,2.92184249]
[1769844822256,0.01119988,2681.9,2681.1,0.93244937]
[1769844822980,0.01119988,2681.9,2681.0,3.85430533]
[1769844823179,0.01119988,2681.9,2681.1,2.92184249]
[1769844823565,0.52610546,2681.9,2681.1,2.92184249]
[1769844823875,0.51490558,2681.9,2681.2,3.85425941]
[1769844824070,0.51490558,2681.9,2681.2,0.93241692]
[1769844824332,0.51490558,2681.9,2681.3,2.92184249]
[1769844824485,0.51490558,2681.9,2681.0,2.92184249]
[1769844824681,0.51490558,2681.9,2681.0,3.21413674]
[1769844824884,1.44708288,2681.9,2681.1,2.92184249]
[1769844825067,0.9321773,2681.9,2681.1,2.92184249]
[1769844826057,0.9321773,2681.9,2681.2,2.92184249]
[1769844826257,0.9321773,2681.9,2681.0,2.92184249]
[1769844826654,0.94336104,2682.0,2681.1,2.92184249]
[1769844826983,0.46718149,2681.9,2681.0,2.92184249]
[1769844827184,0.01119988,2682.0,2681.0,2.92184249]
[1769844827388,0.26924916,2682.5,2681.2,4.43421447]
[1769844827586,0.26924916,2682.5,2681.4,4.43421447]
[1769844827763,0.94316954,2682.5,2681.4,4.43421447]
[1769844827968,0.01119988,2682.3,2681.5,2.92184249]
[1769844828165,0.01119988,2682.1,2681.4,2.92184249]
[1769844828682,0.94316954,2682.5,2681.6,0.93227923]
[1769844828858,0.46709958,2682.4,2681.6,0.93227923]
[1769844829059,0.46709958,2682.4,2681.7,2.92184249]
[1769844829259,0.001,2681.8,2681.7,2.92184249]
[1769844829985,0.001,2681.8,2681.1,0.93242577]
[1769844830195,0.001,2681.8,2680.9,4.43531447]
[1769844830362,0.001,2681.8,2681.4,0.93231666]
[1769844830852,0.001,2681.8,2681.1,0.93243137]
[1769844831057,0.001,2681.8,2681.2,2.92184249]
[1769844831470,0.01219988,2681.8,2681.2,2.92184249]
[1769844831855,0.001,2681.8,2681.2,2.92184249]
[1769844832061,0.001,2681.8,2681.3,2.92184249]
[1769844832261,0.001,2681.8,2681.2,2.92184249]
[1769844832673,0.001,2681.8,2681.1,0.93243137]
[1769844832872,0.001,2681.8,2681.2,2.92184249]
[1769844833290,0.001,2681.8,2681.3,3.85422603]
[1769844833587,0.001,2681.8,2681.3,0.93238354]
[1769844834054,0.001,2681.8,2681.2,3.85423612]
[1769844834258,0.001,2681.8,2681.3,2.92184249]
[1769844836565,0.93283897,2682.9,2681.5,4.43421447]
[1769844836865,0.94403443,2682.9,2681.6,4.43421447]
[1769844837066,0.46600184,2682.8,2681.7,0.44342145]
[1769844837295,0.46600184,2682.8,2681.7,2.89816436]
[1769844837591,0.46600184,2682.8,2681.8,2.45474291]
[1769844837758,0.46600184,2682.8,2681.8,6.88895738]
[1769844837959,0.01119988,2682.8,2681.9,3.18798079]
[1769844838192,0.001,2682.9,2681.9,3.18798079]
[1769844838391,0.001,2682.9,2682.0,2.45474291]
[1769844838794,0.001,2682.9,2682.2,0.93207068]
[1769844839158,0.001,2682.9,2682.3,2.45474291]
[1769844839875,0.01119988,2685.0,2682.5,4.43421447]
[1769844840194,0.93106636,2685.1,2683.6,4.43421447]
[1769844840392,0.93106636,2685.1,2682.6,3.9956017]
[1769844840393,0.01119988,2684.1,2683.2,4.43421447]
[1769844840559,0.01119988,2683.6,2683.2,2.44354303]
[1769844840766,0.01119988,2683.4,2682.6,4.43421447]
[1769844840973,0.01119988,2683.9,2682.6,4.43421447]
[1769844840974,0.01119988,2683.7,2683.3,0.93168859]
[1769844841296,0.01119988,2684.1,2683.4,2.44354303]
[1769844841493,0.01119988,2684.8,2683.5,6.8777575]
[1769844841666,0.01119988,2684.8,2683.5,2.44354303]
[1769844841667,0.01119988,2684.3,2683.5,2.44354303]
[1769844841867,0.01119988,2684.1,2683.5,2.44354303]
[1769844842260,0.01119988,2684.3,2683.5,2.44354303]
[1769844842464,0.01119988,2684.2,2683.6,2.44354303]
[1769844842704,0.01119988,2684.2,2683.5,2.44354303]
[1769844842884,0.01119988,2684.2,2683.6,0.93158443]
[1769844843110,0.01119988,2684.0,2683.6,3.37512746]
[1769844843315,0.01119988,2684.4,2683.7,2.44354303]
[1769844843489,0.01119988,2684.2,2683.7,2.44354303]
[1769844843812,0.01119988,2684.4,2683.8,2.44354303]
[1769844844017,0.01119988,2684.4,2683.7,2.44354303]
[1769844844018,0.00747988,2684.4,2683.7,2.44354303]
[1769844844330,0.01119988,2684.7,2683.7,2.44354303]
[1769844844331,0.01119988,2684.5,2683.7,6.8777575]
[1769844844512,0.01119988,2684.7,2683.8,2.44354303]
[1769844844705,0.01119988,2684.5,2683.8,2.44354303]
[1769844844906,0.01119988,2684.5,2683.9,0.9314803]
[1769844845113,0.01119988,2684.3,2683.9,0.9314803]
[1769844846091,0.01119988,2684.5,2683.9,0.9314803]
[1769844846287,0.01119988,2684.7,2684.0,2.44354303]
[1769844846795,0.01119988,2684.5,2683.7,4.43421447]
[1769844847011,0.01119988,2684.3,2683.9,0.93147704]
[1769844847198,0.01119988,2684.3,2683.3,8.42911444]
[1769844847199,0.01119988,2684.3,2683.8,3.37503664]
[1769844847524,0.01119988,2684.3,2683.3,8.42911444]
[1769844847525,0.01119988,2684.3,2683.9,0.93147975]
[1769844848022,0.01119988,2684.3,2684.0,0.93144331]
[1769844849627,0.01119988,2684.3,2683.4,3.72656873]
[1769844849805,0.01119988,2684.3,2683.5,0.93606068]
[1769844852113,0.01119988,2684.3,2683.6,0.93158443]
[1769844854291,0.01119988,2684.3,2683.7,0.0011]
[1769844854733,0.01119988,2684.3,2683.8,2.44354303]
[1769844855026,0.01119988,2684.5,2683.8,2.44354303]
[1769844855326,0.01119988,2684.5,2683.9,2.44354303]
[1769844855528,0.01119988,2684.5,2683.8,2.44354303]
[1769844856296,1.21670323,2684.9,2683.9,7.14592725]
[1769844856297,0.01119988,2684.8,2683.9,7.14592725]
[1769844856511,0.01119988,2684.6,2684.0,0.9314456]
[1769844856711,0.01119988,2684.8,2684.0,0.9314456]
[1769844856911,0.01119988,2684.6,2684.1,2.44354303]
[1769844858728,0.01119988,2684.8,2684.2,0.9313762]
[1769844858932,0.76786588,2684.8,2684.2,0.9313762]
[1769844859346,0.76786588,2684.8,2684.1,2.44354303]
[1769844859510,0.01119988,2684.2,2683.9,0.93147042]
[1769844859702,0.01119988,2684.2,2683.9,3.37501345]
[1769844859902,0.01119988,2684.2,2684.0,0.93144319]
[1769844860516,0.01119988,2684.4,2684.0,0.93144319]
[1769844860823,0.01119988,2684.4,2683.7,0.93264972]
[1769844864148,0.01119988,2684.4,2683.7,5.63503394]
[1769844864639,0.01119988,2684.4,2683.8,2.44354303]
[1769844865222,0.01119988,2684.4,2683.9,0.9314803]
[1769844865406,0.01119988,2684.7,2684.0,7.14592725]
[1769844866026,0.756666,2684.8,2684.0,7.14592725]
[1769844866224,0.01119988,2684.7,2684.0,7.14592725]
[1769844867040,0.001,2684.5,2684.0,7.14592725]
[1769844867240,0.001,2684.5,2684.1,0.9314109]
[1769844868969,0.756666,2684.8,2684.3,4.70238422]
[1769844869171,1e-08,2684.9,2684.3,4.70238422]
[1769844869469,1e-08,2684.9,2684.5,0.93127211]
[1769844869961,1e-08,2684.9,2684.4,3.37482496]
[1769844872536,1.27416766,2683.5,2682.4,0.0011]
[1769844872735,0.01119988,2682.5,2681.6,0.0033]
[1769844872935,0.01119988,2681.7,2680.9,0.7811]
[1769844873164,0.01119988,2681.5,2680.9,1.71361744]
[1769844873368,0.94332822,2682.1,2681.1,5.63483731]
[1769844873763,0.01119988,2682.1,2681.1,5.63483731]
[1769844876883,0.01119988,2682.3,2681.1,5.63483731]
[1769844877540,0.94326282,2682.3,2681.1,5.63483731]
[1769844877741,0.94326282,2682.3,2681.2,0.93647727]
[1769844878267,0.94326282,2682.3,2681.2,5.74698796]
[1769844879679,0.01119988,2682.1,2681.3,0.93238354]
[1769844880679,0.94323601,2682.3,2681.3,6.04628102]
[1769844880979,0.01119988,2682.1,2681.3,6.04738102]
[1769844881283,0.01219988,2682.1,2681.3,7.11872363]
[1769844881707,0.01119988,2681.4,2681.0,0.0011]
[1769844881921,0.01119988,2681.2,2680.5,0.0011]
[1769844882050,0.01119988,2680.9,2680.5,0.0011]
[1769844882256,0.01119988,2681.3,2680.5,0.0011]
[1769844882455,0.01119988,2681.1,2680.5,0.0011]
[1769844882993,0.01119988,2681.1,2680.5,0.93375608]
[1769844883161,0.01119988,2680.9,2680.5,0.0011]
[1769844883486,0.01119988,2680.7,2680.1,0.781]
[1769844883673,0.943816,2680.7,2680.1,1.37059975]
[1769844884055,0.01119988,2680.5,2680.1,1.37059975]
[1769844884288,0.01119988,2680.5,2680.0,0.0011]
[1769844884777,0.01119988,2680.3,2680.0,0.0011]
[1769844886758,0.01119988,2681.4,2680.0,5.11499748]
[1769844887506,0.01119988,2681.0,2680.1,5.62539723]
[1769844887862,0.01119988,2681.0,2680.2,0.93276621]
[1769844889177,0.01119988,2681.2,2680.2,6.04666369]
[1769844889756,0.01119988,2681.2,2680.3,5.89489748]
[1769844890006,0.01119988,2681.2,2680.5,0.93266181]
[1769844890159,0.94343136,2681.8,2680.5,6.04655929]
[1769844890365,0.01119988,2681.6,2680.5,6.04655929]
[1769844890565,0.01119988,2681.6,2680.7,5.11389748]
[1769844891662,0.01119988,2681.8,2680.7,5.11389748]
[1769844892700,0.01119988,2681.9,2680.9,5.11389748]
[1769844892905,0.01119988,2681.7,2680.9,5.01462794]
[1769844893091,0.01119988,2681.7,2681.0,0.59471854]
[1769844893602,0.01119988,2681.9,2681.0,5.11389748]